fUST/lending_fUST_20250124
["ID","MTS","AMOUNT","RATE_DAILY","PERIOD"]
[350162979,1737663046853,-500.0,0.00020547,3]
[350162980,1737663046863,-500.0,0.00020547,3]
[350162981,1737663046873,-1306.42,0.00020547,3]
[350162982,1737663046883,-500.0,0.00020547,3]
[350162983,1737663046893,-500.0,0.00020547,3]
[350162984,1737663046902,-767.93,0.00020547,3]
[350162985,1737663046912,-1447.81,0.00020547,3]
[350162986,1737663046922,-294.4786124,0.00020547,3]
[350162987,1737663046932,-3555.19,0.00020547,3]
[350162988,1737663046942,-1121.38,0.00020547,3]
[350162989,1737663046953,-151.0,0.00020548,2]
[350162990,1737663046961,-151.467279,0.00020548,2]
[350162992,1737663046971,-1301.48638661,0.0002059,2]
[350162994,1737663046980,-501.20199102,0.00020674,2]
[350162996,1737663046992,-340.03,0.00020684,3]
[350162998,1737663047002,-500.0,0.00020684,3]
[350163000,1737663047011,-817.01,0.00020684,3]
[350163002,1737663047021,-500.0,0.00020684,3]
[350163004,1737663047030,-878.33,0.00020684,3]
[350163005,1737663047040,-500.0,0.00020684,3]
[350163006,1737663047050,-8046.19,0.00020684,3]
[350163007,1737663047060,-3105.27,0.00020684,3]
[350163008,1737663047070,-3913.85,0.00020684,3]
[350163009,1737663047079,-500.0,0.00020684,3]
[350163010,1737663047089,-500.0,0.00020684,3]
[350163011,1737663047099,-1711.96,0.00020684,3]
[350163013,1737663047109,-1208.85,0.00020684,3]
[350163015,1737663047118,-688.62,0.00020684,3]
[350163016,1737663047128,-873.61,0.00020684,3]
[350163017,1737663047137,-1318.32,0.00020684,3]
[350163018,1737663047147,-534.45,0.00020684,3]
[350163019,1737663047157,-500.0,0.00020684,3]
[350163020,1737663047166,-543.06,0.00020684,3]
[350163021,1737663047175,-500.0,0.00020684,3]
[350163022,1737663047185,-500.0,0.00020684,3]
[350163023,1737663047194,-6658.01,0.00020684,3]
[350163024,1737663047205,-847.08,0.00020684,3]
[350163025,1737663047217,-500.0,0.00020684,3]
[350163026,1737663047226,-500.0,0.00020684,3]
[350163027,1737663047236,-1306.42,0.00020684,3]
[350163028,1737663047245,-500.0,0.00020684,3]
[350163029,1737663047255,-500.0,0.00020684,3]
[350163030,1737663047265,-767.93,0.00020684,3]
[350163031,1737663047275,-1447.81,0.00020684,3]
[350163032,1737663047286,-3555.19,0.00020684,3]
[350163033,1737663047296,-1121.38,0.00020684,3]
[350163034,1737663047306,-151.0,0.000207,3]
[350163035,1737663047316,-151.0,0.000207,3]
[350163036,1737663047326,-151.0,0.000207,4]
[350163037,1737663047336,-1301.48638661,0.00020728,2]
[350163038,1737663047347,-1000.0,0.00020763,2]
[350163039,1737663047356,-349.22133951,0.00020821,3]
[350163040,1737663047366,-817.01,0.00020821,3]
[350163041,1737663047375,-500.0,0.00020821,3]
[350163042,1737663047385,-878.33,0.00020821,3]
[350163043,1737663047395,-500.0,0.00020821,3]
[350163044,1737663047404,-8046.19,0.00020821,3]
[350163045,1737663047414,-3105.27,0.00020821,3]
[350163046,1737663047423,-3913.85,0.00020821,3]
[350163047,1737663047437,-500.0,0.00020821,3]
[350163048,1737663047447,-500.0,0.00020821,3]
[350163049,1737663047457,-1711.96,0.00020821,3]
[350163050,1737663047469,-1208.85,0.00020821,3]
[350163051,1737663047479,-688.62,0.00020821,3]
[350163052,1737663047489,-873.61,0.00020821,3]
[350163053,1737663047499,-1318.32,0.00020821,3]
[350163054,1737663047509,-534.45,0.00020821,3]
[350163055,1737663047518,-500.0,0.00020821,3]
[350163056,1737663047528,-543.06,0.00020821,3]
[350163057,1737663047538,-500.0,0.00020821,3]
[350163058,1737663047547,-500.0,0.00020821,3]
[350163059,1737663047557,-6658.01,0.00020821,3]
[350163060,1737663047569,-847.08,0.00020821,3]
[350163061,1737663047578,-500.0,0.00020821,3]
[350163062,1737663047588,-1306.42,0.00020821,3]
[350163063,1737663047597,-218.72,0.00020821,3]
[350163064,1737663047607,-500.0,0.00020821,3]
[350163065,1737663047616,-500.0,0.00020821,3]
[350163066,1737663047625,-767.93,0.00020821,3]
[350163067,1737663047634,-1447.81,0.00020821,3]
[350163068,1737663047644,-3555.19,0.00020821,3]
[350163069,1737663047655,-1121.38,0.00020821,3]
[350163070,1737663047665,-302.400688,0.00020822,2]
[350163071,1737663047674,-491.44434751,0.00020852,2]
[350163072,1737663047684,-1301.48638661,0.00020866,2]
[350163073,1737663047694,-500.0,0.00020914,2]
[350163074,1737663047704,-817.01,0.00020958,3]
[350163075,1737663047715,-500.0,0.00020958,3]
[350163076,1737663047724,-878.33,0.00020958,3]
[350163077,1737663047734,-500.0,0.00020958,3]
[350163078,1737663047743,-8046.19,0.00020958,3]
[350163079,1737663047752,-3105.27,0.00020958,3]
[350163080,1737663047762,-3913.85,0.00020958,3]
[350163081,1737663047773,-500.0,0.00020958,3]
[350163082,1737663047782,-500.0,0.00020958,3]
[350163083,1737663047871,-1711.96,0.00020958,3]
[350163084,1737663047885,-1208.85,0.00020958,3]
[350163085,1737663047894,-688.62,0.00020958,3]
[350163086,1737663047904,-873.61,0.00020958,3]
[350163087,1737663047913,-1318.32,0.00020958,3]
[350163088,1737663047923,-534.45,0.00020958,3]
[350163089,1737663047933,-500.0,0.00020958,3]
[350163090,1737663047942,-543.06,0.00020958,3]
[350163091,1737663047952,-500.0,0.00020958,3]
[350163092,1737663047961,-500.0,0.00020958,3]
[350163093,1737663047970,-6658.01,0.00020958,3]
[350163094,1737663047980,-847.08,0.00020958,3]
[350163095,1737663047990,-500.0,0.00020958,3]
[350163096,1737663047999,-1306.42,0.00020958,3]
[350163097,1737663048011,-500.0,0.00020958,3]
[350163098,1737663048020,-500.0,0.00020958,3]
[350163099,1737663048031,-767.93,0.00020958,3]
[350163100,1737663048040,-1447.81,0.00020958,3]
[350163101,1737663048049,-3555.19,0.00020958,3]
[350163102,1737663048058,-1121.38,0.00020958,3]
[350163103,1737663048069,-264.10302532,0.00021,2]
[350163104,1737663048079,-4803.11343729,0.00021,2]
[350163105,1737663048088,-1000.0,0.00021,21]
[350163106,1737663048098,-3000.0,0.00021,2]
[350163107,1737663048108,-1301.48638661,0.00021003,2]
[350163108,1737663048117,-3000.0,0.0002101,2]
[350163109,1737663048126,-3000.0,0.0002102,2]
[350163110,1737663048137,-3000.0,0.0002103,2]
[350163111,1737663048146,-197.0,0.00021032,2]
[350163112,1737663048155,-197.94,0.00021032,2]
[350163113,1737663048164,-3000.0,0.0002104,2]
[350163114,1737663048174,-3000.0,0.0002105,2]
[350163115,1737663048183,-3000.0,0.0002106,2]
[350163116,1737663048193,-3000.0,0.0002107,2]
[350163117,1737663048202,-3000.0,0.0002108,2]
[350163118,1737663048212,-3000.0,0.0002109,2]
[350163119,1737663048222,-817.01,0.00021095,3]
[350163120,1737663048231,-500.0,0.00021095,3]
[350163121,1737663048241,-878.33,0.00021095,3]
[350163122,1737663048251,-500.0,0.00021095,3]
[350163123,1737663048260,-8046.19,0.00021095,3]
[350163124,1737663048270,-3105.27,0.00021095,3]
[350163125,1737663048279,-3913.85,0.00021095,3]
[350163126,1737663048289,-500.0,0.00021095,3]
[350163127,1737663048298,-478.28,0.00021095,3]
[350163128,1737663048307,-1711.96,0.00021095,3]
[350163129,1737663048318,-1208.85,0.00021095,3]
[350163130,1737663048328,-688.62,0.00021095,3]
[350163131,1737663048337,-873.61,0.00021095,3]
[350163132,1737663048347,-1318.32,0.00021095,3]
[350163133,1737663048357,-534.45,0.00021095,3]
[350163134,1737663048366,-500.0,0.00021095,3]
[350163135,1737663048376,-543.06,0.00021095,3]
[350163136,1737663048385,-338.49400426,0.00021095,3]
[350163137,1737663048394,-500.0,0.00021095,3]
[350163138,1737663048403,-6658.01,0.00021095,3]
[350163139,1737663048413,-847.08,0.00021095,3]
[350163140,1737663048423,-500.0,0.00021095,3]
[350163141,1737663048432,-1306.42,0.00021095,3]
[350163142,1737663048441,-500.0,0.00021095,3]
[350163143,1737663048453,-445.62738582,0.00021095,3]
[350163144,1737663048463,-767.93,0.00021095,3]
[350163145,1737663048473,-1447.81,0.00021095,3]
[350163146,1737663048482,-3555.19,0.00021095,3]
[350163147,1737663048491,-1121.38,0.00021095,3]
[350163148,1737663048502,-1420.66189125,0.000211,2]
[350163149,1737663048580,-1579.33810875,0.000211,2]
[350163150,1737663048590,-3000.0,0.0002111,2]
[350163151,1737663048599,-3000.0,0.0002112,2]
[350163152,1737663048609,-3000.0,0.0002113,2]
[350163153,1737663048618,-3000.0,0.0002114,2]
[350163154,1737663048627,-1301.48638661,0.00021141,2]
[350163155,1737663048637,-3000.0,0.0002115,2]
[350163156,1737663048646,-3000.0,0.0002116,2]
[350163157,1737663048655,-3000.0,0.0002117,2]
[350163158,1737663048664,-3000.0,0.0002118,2]
[350163159,1737663048673,-3000.0,0.0002119,2]
[350163160,1737663048683,-3000.0,0.000212,2]
[350163161,1737663048692,-3000.0,0.0002121,2]
[350163162,1737663048701,-3000.0,0.0002122,2]
[350163163,1737663048711,-3000.0,0.0002123,2]
[350163164,1737663048720,-817.01,0.00021232,3]
[350163165,1737663048730,-500.0,0.00021232,3]
[350163166,1737663048739,-878.33,0.00021232,3]
[350163167,1737663048748,-639.12686559,0.00021232,3]
[350163168,1737663048757,-1669.84884633,0.00021232,3]
[350163169,1737663048886,-340.19792056,0.00019178,2]
[350163170,1737663048899,-159.80207944,0.00019178,2]
[350163171,1737663048909,-160.0,0.0002,3]
[350163172,1737663048919,-1154.04225501,0.00020216,2]
[350163173,1737663048929,-6376.34115367,0.00021232,3]
[350163174,1737663048940,-3105.27,0.00021232,3]
[350163175,1737663048949,-3913.85,0.00021232,3]
[350163176,1737663048958,-500.0,0.00021232,3]
[350163177,1737663048970,-1711.96,0.00021232,3]
[350163178,1737663048980,-1208.85,0.00021232,3]
[350163179,1737663048989,-688.62,0.00021232,3]
[350163180,1737663048999,-873.61,0.00021232,3]
[350163181,1737663049009,-1318.32,0.00021232,3]
[350163182,1737663049018,-534.45,0.00021232,3]
[350163183,1737663049028,-500.0,0.00021232,3]
[350163184,1737663049038,-543.06,0.00021232,3]
[350163185,1737663049047,-197.55,0.00021232,3]
[350163186,1737663049056,-6658.01,0.00021232,3]
[350163187,1737663049066,-847.08,0.00021232,3]
[350163188,1737663049076,-500.0,0.00021232,3]
[350163189,1737663049085,-1306.42,0.00021232,3]
[350163190,1737663049095,-500.0,0.00021232,3]
[350163191,1737663049105,-767.93,0.00021232,3]
[350163192,1737663049114,-1447.81,0.00021232,3]
[350163193,1737663049123,-959.68549028,0.00021232,3]
[350163194,1737663049139,-455.4460002,0.00021232,3]
[350163196,1737663638886,355.301264,0.00013973,2]
[350163269,1737664049452,12430.3842496,0.00024,120]
[350163276,1737664157141,-4341.47533141,0.00016,2]
[350163315,1737664232700,-1840.4840141,0.00016294,2]
[350163317,1737664232710,-1840.4840141,0.00016459,2]
[350163319,1737664232720,-300.0,0.0001674,2]
[350163321,1737664232729,-4543.64225362,0.00016741,2]
[350163323,1737664232739,-848.62732818,0.00016741,2]
[350163325,1737664232753,-15435.73587538,0.00017251,2]
[350163328,1737664232766,-9464.26412462,0.00017251,2]
[350163332,1737664232923,-307.726105,0.00017376,2]
[350163334,1737664232933,-1120.92954311,0.000176,2]
[350163336,1737664232943,-474.11423097,0.00017658,2]
[350163338,1737664232952,-5175.1034963,0.00017734,2]
[350163340,1737664232964,-7003.9433653,0.00017734,2]
[350163343,1737664232974,-250.0,0.00017736,2]
[350163346,1737664232983,-201.600458,0.00017808,2]
[350163349,1737664232996,-201.02,0.00018,2]
[350163352,1737664233005,-420.0,0.00018289,2]
[350163355,1737664233015,-152.0,0.00018648,2]
[350163359,1737664233024,-523.87580286,0.00018974,2]
[350163360,1737664233034,-328.09693304,0.00019,2]
[350163364,1737664233046,-4868.49261931,0.00019,2]
[350163367,1737664233057,-253.4927888,0.00019,2]
[350163371,1737664233068,-2809.56303131,0.00019,2]
[350163374,1737664233080,-8936.66563456,0.00019,2]
[350163377,1737664233091,-999.7066692,0.00019,2]
[350163380,1737664233108,-2220.71580079,0.00019,2]
[350163383,1737664233118,-500.0,0.00019068,2]
[350163385,1737664233128,-156.51568949,0.00019078,2]
[350163388,1737664233138,-500.0,0.00019178,2]
[350163390,1737664233147,-500.0,0.00019178,2]
[350163392,1737664233157,-326.11538359,0.00019178,2]
[350163394,1737664233167,-500.0,0.00019178,2]
[350163396,1737664233177,-500.0,0.00019178,2]
[350163398,1737664233186,-173.38060431,0.00019178,2]
[350163400,1737664233196,-500.0,0.00019178,2]
[350163402,1737664233206,-500.0,0.00019178,2]
[350163404,1737664233216,-500.0,0.00019178,2]
[350163406,1737664233225,-500.0,0.00019178,2]
[350163408,1737664233235,-508.46368533,0.00019178,2]
[350163410,1737664233249,-500.0,0.00019178,2]
[350163412,1737664233258,-640.59897569,0.00019178,2]
[350163414,1737664233268,-502.19,0.00019178,2]
[350163416,1737664233278,-500.0,0.00019178,2]
[350163418,1737664233287,-500.0,0.00019178,2]
[350163420,1737664233298,-517.57,0.00019178,2]
[350163422,1737664233308,-500.0,0.00019178,2]
[350163424,1737664233317,-500.0,0.00019178,2]
[350163426,1737664233329,-3283.0,0.00019178,2]
[350163428,1737664233339,-500.0,0.00019178,2]
[350163430,1737664233348,-500.0,0.00019178,2]
[350163432,1737664233357,-500.0,0.00019178,2]
[350163434,1737664233366,-500.0,0.00019178,2]
[350163436,1737664233376,-500.0,0.00019178,2]
[350163438,1737664233385,-500.0,0.00019178,2]
[350163440,1737664233394,-281.00646761,0.00019178,2]
[350163639,1737664239089,-1435.49660028,0.00018986,2]
[350163640,1737664239100,-1349.76353239,0.00019178,2]
[350163641,1737664239109,-500.0,0.00019178,2]
[350163642,1737664239119,-500.0,0.00019178,2]
[350163643,1737664239128,-500.0,0.00019178,2]
[350163644,1737664239138,-1293.86,0.00019178,2]
[350163645,1737664239147,-500.0,0.00019178,2]
[350163646,1737664239157,-500.0,0.00019178,2]
[350163647,1737664239167,-500.0,0.00019178,2]
[350163648,1737664239177,-267.99559046,0.00019178,2]
[350163649,1737664239190,-232.00440954,0.00019178,2]
[350163650,1737664239199,-199.39624466,0.00019178,2]
[350163651,1737664239212,-300.60375534,0.00019178,2]
[350163652,1737664239222,-500.0,0.00019178,2]
[350163654,1737664239232,-500.0,0.00019178,2]
[350163655,1737664239242,-641.98,0.00019178,2]
[350163656,1737664239255,-500.0,0.00019178,2]
[350163657,1737664239265,-4239.24,0.00019178,2]
[350163658,1737664239275,-500.0,0.00019178,2]
[350163659,1737664239284,-500.0,0.00019178,2]
[350163660,1737664239294,-500.0,0.00019178,2]
[350163661,1737664239305,-500.0,0.00019178,2]
[350163662,1737664239314,-500.0,0.00019178,2]
[350163663,1737664239324,-500.0,0.00019178,2]
[350163664,1737664239335,-500.0,0.00019178,2]
[350163665,1737664239345,-500.0,0.00019178,2]
[350163666,1737664239355,-298.60067486,0.00019178,2]
[350163667,1737664239369,-201.39932514,0.00019178,2]
[350163668,1737664239379,-559.35,0.00019178,2]
[350163669,1737664239389,-500.0,0.00019178,2]
[350163670,1737664239399,-1719.36,0.00019178,2]
[350163671,1737664239410,-603.16,0.00019178,2]
[350163672,1737664239420,-500.0,0.00019178,2]
[350163673,1737664239430,-500.0,0.00019178,2]
[350163674,1737664239441,-500.0,0.00019178,2]
[350163675,1737664239452,-500.0,0.00019178,2]
[350163676,1737664239461,-500.0,0.00019178,2]
[350163677,1737664239471,-500.0,0.00019178,2]
[350163678,1737664239480,-500.0,0.00019178,2]
[350163679,1737664239490,-500.0,0.00019178,2]
[350163680,1737664239502,-500.0,0.00019178,2]
[350163681,1737664239511,-500.0,0.00019178,2]
[350163682,1737664239521,-500.0,0.00019178,2]
[350163683,1737664239530,-500.0,0.00019178,2]
[350163684,1737664239540,-500.0,0.00019178,2]
[350163685,1737664239549,-500.0,0.00019178,2]
[350163686,1737664239559,-500.0,0.00019178,2]
[350163687,1737664239568,-500.0,0.00019178,2]
[350163688,1737664239578,-500.0,0.00019178,2]
[350163689,1737664239587,-500.0,0.00019178,2]
[350163690,1737664239597,-500.0,0.00019178,2]
[350163691,1737664239607,-162.65,0.00019178,2]
[350163692,1737664239616,-168.28273,0.00019178,2]
[350163693,1737664239625,-219.72425494,0.00019313,2]
[350163694,1737664239635,-500.0,0.00019313,2]
[350163695,1737664239644,-500.0,0.00019313,2]
[350163696,1737664239653,-500.0,0.00019313,2]
[350163697,1737664239662,-500.0,0.00019313,2]
[350163698,1737664239672,-500.0,0.00019313,2]
[350163699,1737664239681,-270.0,0.00019313,2]
[350163700,1737664239690,-500.0,0.00019313,2]
[350163701,1737664239699,-500.0,0.00019313,2]
[350163702,1737664239709,-500.0,0.00019313,2]
[350163703,1737664239718,-500.0,0.00019313,2]
[350163704,1737664239727,-500.0,0.00019313,2]
[350163705,1737664239736,-500.0,0.00019313,2]
[350163706,1737664239746,-500.0,0.00019313,2]
[350163707,1737664239760,-581.08902261,0.00019313,2]
[350163708,1737664239769,-443.48343106,0.00019313,2]
[350163709,1737664239778,-500.0,0.00019313,2]
[350163710,1737664239788,-500.0,0.00019313,2]
[350163711,1737664239797,-500.0,0.00019313,2]
[350163712,1737664239807,-482.76694128,0.00019313,2]
[350163713,1737664239816,-500.0,0.00019313,2]
[350163714,1737664239827,-500.0,0.00019313,2]
[350163715,1737664239837,-500.0,0.00019313,2]
[350163716,1737664239847,-500.0,0.00019313,2]
[350163717,1737664239861,-500.0,0.00019313,2]
[350163718,1737664239872,-500.0,0.00019313,2]
[350163719,1737664239882,-500.0,0.00019313,2]
[350163720,1737664239891,-207.65055379,0.00019313,2]
[350163721,1737664239902,-500.0,0.00019313,2]
[350163722,1737664239911,-309.65563154,0.00019313,2]
[350163723,1737664239922,-500.0,0.00019313,2]
[350163724,1737664239933,-500.0,0.00019313,2]
[350163725,1737664239943,-500.0,0.00019313,2]
[350163726,1737664239952,-500.0,0.00019313,2]
[350163727,1737664239962,-500.0,0.00019313,2]
[350163728,1737664239971,-500.0,0.00019313,2]
[350163729,1737664239981,-500.0,0.00019313,2]
[350163730,1737664239992,-500.0,0.00019313,2]
[350163731,1737664240006,-500.0,0.00019313,2]
[350163732,1737664240015,-500.0,0.00019313,2]
[350163733,1737664240025,-500.0,0.00019313,2]
[350163734,1737664240035,-500.0,0.00019313,2]
[350163735,1737664240045,-500.0,0.00019313,2]
[350163736,1737664240055,-500.0,0.00019313,2]
[350163737,1737664240065,-500.0,0.00019313,2]
[350163738,1737664240075,-554.29374882,0.00019313,2]
[350163739,1737664240086,-500.0,0.00019313,2]
[350163740,1737664240096,-500.0,0.00019313,2]
[350163742,1737664240107,-500.0,0.00019313,2]
[350163744,1737664240117,-500.0,0.00019313,2]
[350163746,1737664240127,-500.0,0.00019313,2]
[350163748,1737664240138,-500.0,0.00019313,2]
[350163749,1737664240148,-500.0,0.00019314,3]
[350163750,1737664240157,-500.0,0.00019315,3]
[350163751,1737664240167,-500.0,0.00019315,3]
[350163753,1737664240177,-502.19,0.00019315,3]
[350163755,1737664240188,-517.57,0.00019315,3]
[350163756,1737664240198,-3283.0,0.00019315,3]
[350163759,1737664240209,-500.0,0.00019315,3]
[350163761,1737664240219,-1630.77,0.00019315,3]
[350163764,1737664240230,-1293.86,0.00019315,3]
[350163766,1737664240240,-500.0,0.00019315,3]
[350163768,1737664240255,-500.0,0.00019315,3]
[350163770,1737664240264,-500.0,0.00019315,3]
[350163772,1737664240274,-500.0,0.00019315,3]
[350163773,1737664240284,-500.0,0.00019315,3]
[350163776,1737664240294,-641.98,0.00019315,3]
[350163778,1737664240304,-500.0,0.00019315,3]
[350163780,1737664240313,-4239.24,0.00019315,3]
[350163782,1737664240322,-500.0,0.00019315,3]
[350163784,1737664240332,-197.55,0.00019315,3]
[350163786,1737664240342,-500.0,0.00019315,3]
[350163788,1737664240352,-500.0,0.00019315,3]
[350163791,1737664240361,-559.35,0.00019315,3]
[350163794,1737664240370,-1719.36,0.00019315,3]
[350163796,1737664240380,-603.16,0.00019315,3]
[350163798,1737664240390,-500.0,0.00019315,3]
[350163800,1737664240399,-500.0,0.00019315,3]
[350163802,1737664240409,-500.0,0.00019315,3]
[350163805,1737664240418,-500.0,0.00019315,3]
[350163808,1737664240428,-500.0,0.00019315,3]
[350163811,1737664240437,-500.0,0.00019315,3]
[350163814,1737664240446,-500.0,0.00019315,3]
[350163817,1737664240455,-500.0,0.00019315,3]
[350163820,1737664240465,-500.0,0.00019315,3]
[350163823,1737664240475,-500.0,0.00019315,3]
[350163826,1737664240484,-500.0,0.00019315,3]
[350163828,1737664240493,-500.0,0.00019348,3]
[350163832,1737664240508,-1565.56391469,0.00019361,2]
[350163835,1737664240518,-500.0,0.00019451,3]
[350163838,1737664240527,-500.0,0.00019452,3]
[350163841,1737664240537,-500.0,0.00019452,3]
[350163844,1737664240546,-502.19,0.00019452,3]
[350163847,1737664240556,-517.57,0.00019452,3]
[350163850,1737664240565,-3283.0,0.00019452,3]
[350163853,1737664240574,-613.22,0.00019452,3]
[350163856,1737664240583,-1630.77,0.00019452,3]
[350163859,1737664240592,-1293.86,0.00019452,3]
[350163861,1737664240601,-500.0,0.00019452,3]
[350163864,1737664240611,-500.0,0.00019452,3]
[350163867,1737664240620,-500.0,0.00019452,3]
[350163870,1737664240629,-641.98,0.00019452,3]
[350163873,1737664240639,-500.0,0.00019452,3]
[350163876,1737664240648,-4239.24,0.00019452,3]
[350163880,1737664240658,-500.0,0.00019452,3]
[350163882,1737664240667,-500.0,0.00019452,3]
[350163885,1737664240676,-500.0,0.00019452,3]
[350163888,1737664240685,-559.35,0.00019452,3]
[350163907,1737664240694,-1719.36,0.00019452,3]
[350163909,1737664240798,-603.16,0.00019452,3]
[350163912,1737664240808,-500.0,0.00019452,3]
[350163915,1737664240818,-500.0,0.00019452,3]
[350163918,1737664240832,-500.0,0.00019452,3]
[350163921,1737664240841,-159.80207944,0.00019452,3]
[350163923,1737664240851,-500.0,0.00019452,3]
[350163926,1737664240860,-500.0,0.00019452,3]
[350163929,1737664240872,-466.72,0.00019452,3]
[350163932,1737664240882,-156.51568946,0.00019455,2]
[350163934,1737664240891,-500.0,0.00019589,3]
[350163937,1737664240902,-500.0,0.00019589,3]
[350163940,1737664240912,-502.19,0.00019589,3]
[350163943,1737664240922,-517.57,0.00019589,3]
[350163946,1737664240931,-3283.0,0.00019589,3]
[350163948,1737664240941,-1630.77,0.00019589,3]
[350163951,1737664240951,-1293.86,0.00019589,3]
[350163954,1737664240960,-500.0,0.00019589,3]
[350163957,1737664240970,-500.0,0.00019589,3]
[350163960,1737664240980,-500.0,0.00019589,3]
[350163962,1737664240990,-641.98,0.00019589,3]
[350163965,1737664241005,-500.0,0.00019589,3]
[350163968,1737664241015,-4239.24,0.00019589,3]
[350163970,1737664241024,-500.0,0.00019589,3]
[350163973,1737664241034,-500.0,0.00019589,3]
[350163976,1737664241044,-262.60883005,0.00019589,3]
[350163979,1737664241054,-559.35,0.00019589,3]
[350163982,1737664241064,-1719.36,0.00019589,3]
[350163985,1737664241074,-603.16,0.00019589,3]
[350163988,1737664241083,-500.0,0.00019589,3]
[350163990,1737664241092,-626.83562729,0.00019589,3]
[350163993,1737664241102,-500.0,0.00019589,3]
[350163996,1737664241113,-500.0,0.00019589,3]
[350163998,1737664241124,-500.0,0.00019589,3]
[350164001,1737664241133,-284.96200596,0.00019607,2]
[350164003,1737664241143,-215.943,0.00019662,2]
[350164005,1737664241152,-481.393,0.00019662,2]
[350164007,1737664241162,-500.0,0.00019726,3]
[350164009,1737664241171,-500.0,0.00019726,3]
[350164011,1737664241181,-502.19,0.00019726,3]
[350164013,1737664241191,-517.57,0.00019726,3]
[350164015,1737664241200,-3283.0,0.00019726,3]
[350164017,1737664241210,-1630.77,0.00019726,3]
[350164019,1737664241220,-1293.86,0.00019726,3]
[350164021,1737664241230,-500.0,0.00019726,3]
[350164023,1737664241239,-500.0,0.00019726,3]
[350164025,1737664241251,-500.0,0.00019726,3]
[350164027,1737664241264,-641.98,0.00019726,3]
[350164029,1737664241274,-500.0,0.00019726,3]
[350164031,1737664241283,-4239.24,0.00019726,3]
[350164033,1737664241296,-500.0,0.00019726,3]
[350164035,1737664241305,-500.0,0.00019726,3]
[350164037,1737664241314,-559.35,0.00019726,3]
[350164039,1737664241323,-1719.36,0.00019726,3]
[350164041,1737664241333,-603.16,0.00019726,3]
[350164043,1737664241342,-500.0,0.00019726,3]
[350164045,1737664241355,-500.0,0.00019726,3]
[350164047,1737664241364,-500.0,0.00019726,3]
[350164049,1737664241373,-560.30876931,0.0001979,2]
[350164051,1737664241383,-156.51568946,0.00019831,2]
[350164053,1737664241392,-192.13864286,0.00019862,2]
[350164055,1737664241402,-500.0,0.00019862,2]
[350164057,1737664241411,-398.08256631,0.00019862,2]
[350164059,1737664241421,-500.0,0.00019863,3]
[350164061,1737664241430,-500.0,0.00019863,3]
[350164063,1737664241439,-502.19,0.00019863,3]
[350164065,1737664241448,-517.57,0.00019863,3]
[350164067,1737664241457,-3283.0,0.00019863,3]
[350164068,1737664241466,-1630.77,0.00019863,3]
[350164070,1737664241476,-1293.86,0.00019863,3]
[350164073,1737664241485,-500.0,0.00019863,3]
[350164075,1737664241494,-500.0,0.00019863,3]
[350164076,1737664241510,-500.0,0.00019863,3]
[350164079,1737664241519,-641.98,0.00019863,3]
[350164080,1737664241530,-500.0,0.00019863,3]